fUST/lending_fUST_20240430
["ID","MTS","AMOUNT","RATE_DAILY","PERIOD"]
[324941549,1714455044484,-354.188323,0.00024658,2]
[324941550,1714455044494,-354.188323,0.00024658,2]
[324941551,1714455044503,-354.188323,0.00024658,2]
[324941552,1714455044513,-354.188323,0.00024658,2]
[324941553,1714455044522,-354.188323,0.00024658,2]
[324941554,1714455044531,-354.188323,0.00024658,2]
[324941555,1714455044541,-354.188323,0.00024658,2]
[324941556,1714455044552,-354.188323,0.00024658,2]
[324941557,1714455044562,-354.188323,0.00024658,2]
[324941558,1714455044573,-354.188323,0.00024658,2]
[324941559,1714455044583,-354.188323,0.00024658,2]
[324941560,1714455044592,-354.188323,0.00024658,2]
[324941561,1714455044601,-354.188323,0.00024658,2]
[324941562,1714455044610,-354.188316,0.00024658,2]
[324941563,1714455044619,-380.0,0.00024658,2]
[324941564,1714455044629,-200.0,0.00024658,15]
[324941565,1714455044639,-155.21372883,0.00024711,2]
[324941566,1714455044650,-500.0,0.00024712,2]
[324941567,1714455044659,-152.79752244,0.00024725,2]
[324941568,1714455044668,-605.12863353,0.00024744,2]
[324941569,1714455044677,-500.0,0.00024767,2]
[324941570,1714455044687,-157.73975448,0.00024796,2]
[324941571,1714455044696,-500.0,0.00024821,2]
[324941572,1714455044705,-165.13262415,0.00024871,2]
[324941573,1714455044714,-500.0,0.00024876,2]
[324941574,1714455044724,-157.73975448,0.00024885,2]
[324941575,1714455044734,-500.0,0.00024931,2]
[324941576,1714455044743,-500.0,0.00024986,2]
[324941577,1714455044752,-154.78330338,0.00025,2]
[324941578,1714455044762,-154.78330338,0.00025,2]
[324941579,1714455044771,-154.78330338,0.00025,2]
[324941580,1714455044780,-154.78330338,0.00025,2]
[324941581,1714455044789,-5398.98860227,0.00025,2]
[324941582,1714455044799,-3684.44918442,0.00025,2]
[324941583,1714455044808,-155.0785368,0.00025,2]
[324941584,1714455044817,-201.319096,0.00025,2]
[324941585,1714455044827,-201.319096,0.00025,2]
[324941586,1714455044836,-288.852604,0.00025,2]
[324941587,1714455044947,-288.852604,0.00025,2]
[324941588,1714455044957,-1558.853307,0.00025,2]
[324941589,1714455044966,-500.0,0.00025041,2]
[324941590,1714455044975,-500.0,0.00025095,2]
[324941591,1714455044984,-500.0,0.0002515,2]
[324941592,1714455044993,-153.8921486,0.00025202,2]
[324941593,1714455045003,-500.0,0.00025205,2]
[324941594,1714455045012,-500.0,0.0002526,2]
[324941595,1714455045021,-150.0,0.0002529,4]
[324941596,1714455045030,-500.0,0.00025315,2]
[324941597,1714455045039,-500.0,0.00025369,2]
[324941598,1714455045049,-500.0,0.00025424,2]
[324941599,1714455045058,-229.16015745,0.00025449,2]
[324941600,1714455045067,-500.0,0.00025479,2]
[324941601,1714455045076,-150.0,0.00025499,2]
[324941602,1714455045086,-1000.0,0.000255,2]
[324941603,1714455045095,-152.79752244,0.00025509,2]
[324941604,1714455045105,-500.0,0.00025534,2]
[324941605,1714455045116,-605.12863353,0.00025546,2]
[324941606,1714455045125,-153.8921486,0.00025555,2]
[324941607,1714455045134,-500.0,0.00025589,2]
[324941608,1714455045143,-605.12863353,0.0002563,2]
[324941609,1714455045153,-500.0,0.00025643,2]
[324941610,1714455045162,-500.0,0.00025698,2]
[324941611,1714455045171,-1613.0,0.00025718,2]
[324941612,1714455045181,-157.73975448,0.00025752,2]
[324941613,1714455045190,-500.0,0.00025753,2]
[324941614,1714455045199,-413.0,0.00025775,2]
[324941615,1714455045208,-209.82008119,0.00025786,3]
[324941616,1714455045217,-588.0,0.000258,2]
[324941617,1714455045227,-621.43470464,0.00025807,2]
[324941618,1714455045236,-500.0,0.00025808,2]
[324941619,1714455045245,-157.73975448,0.00025828,2]
[324941620,1714455045254,-306.0,0.00025853,2]
[324941621,1714455045263,-500.0,0.00025863,2]
[324941622,1714455045272,-206.56888876,0.00025917,2]
[324941623,1714455045282,-2822.94323981,0.00026,9]
[324941624,1714455045291,-151.0,0.00026,2]
[324941625,1714455045302,-201.319096,0.00026,2]
[324941626,1714455045312,-201.319096,0.00026,2]
[324941628,1714455045322,-288.852604,0.00026,2]
[324941629,1714455045331,-288.852603,0.00026,2]
[324941630,1714455045340,-1000.0,0.00026,2]
[324941631,1714455045349,-605.12863353,0.00026005,2]
[324941632,1714455045358,-157.73975448,0.00026088,2]
[324941633,1714455045367,-153.8921486,0.00026356,2]
[324941634,1714455045376,-605.12863353,0.00026374,2]
[324941635,1714455045385,-150.0,0.00026499,2]
[324941636,1714455045394,-201.319096,0.000265,2]
[324941637,1714455045403,-201.319098,0.000265,2]
[324941638,1714455045413,-1000.0,0.000265,2]
[324941639,1714455045422,-2000.0,0.000266,2]
[324941640,1714455045431,-151.0,0.000266,2]
[324941641,1714455045440,-153.8921486,0.00026651,2]
[324941642,1714455045450,-203.7672836,0.00026685,2]
[324941643,1714455045459,-44444.0,0.000268,3]
[324941644,1714455045468,-605.12863353,0.000268,2]
[324941645,1714455045477,-158.0,0.0002683,7]
[324941646,1714455045486,-5000.0,0.000269,2]
[324941647,1714455045495,-157.73975448,0.00026959,2]
[324941649,1714455045505,-8529.21181525,0.00027,2]
[324941652,1714455045514,-151.0,0.00027,2]
[324941654,1714455045523,-1000.0,0.00027,2]
[324941655,1714455045532,-407.5345672,0.00027068,2]
[324941657,1714455045541,-620.07173523,0.00027098,2]
[324941659,1714455045555,-153.8921486,0.00027221,2]
[324941660,1714455045570,-413.0,0.00027386,2]
[324941661,1714455045579,-166.666666,0.00027397,2]
[324941662,1714455045588,-975.77635024,0.000274,2]
[324941663,1714455045599,-150.0,0.00027449,3]
[324941664,1714455045609,-605.12863353,0.00027453,2]
[324941665,1714455045618,-150.0,0.00027499,2]
[324941666,1714455045627,-31302.58393277,0.000275,2]
[324941667,1714455045638,-151.0,0.000275,2]
[324941668,1714455045648,-1000.0,0.000275,2]
[324941670,1714455045660,-151.0,0.0002753,2]
[324941672,1714455045670,-165.13262415,0.0002754,2]
[324941673,1714455045679,-155.21372883,0.00027583,2]
[324941674,1714455045688,-413.0,0.00027616,2]
[324941675,1714455045697,-156.39815553,0.00027621,3]
[324941676,1714455045706,-140633.24846518,0.0002763,2]
[324941678,1714455045715,-151.0,0.0002763,2]
[324941680,1714455045725,-274.918776,0.0002763,2]
[324941681,1714455045734,-150.498,0.00027643,2]
[324941682,1714455045744,-436.25,0.00027643,2]
[324941683,1714455045753,-155.21372883,0.00027666,2]
[324941685,1714455045762,-152.95,0.0002777,120]
[324941686,1714455045771,-153.1788774,0.00027836,2]
[324941687,1714455045780,-153.0,0.00027836,2]
[324941688,1714455045789,-153.6279903,0.00027836,2]
[324941689,1714455045798,-153.0,0.00027836,2]
[324941690,1714455045808,-153.0,0.00027836,2]
[324941691,1714455045817,-153.0,0.00027836,2]
[324941692,1714455045826,-220.93587945,0.00028,2]
[324941693,1714455045835,-409959.2884783,0.00028,4]
[324941694,1714455045844,-154.78330338,0.00028,2]
[324941695,1714455045853,-1564.25196696,0.00028,2]
[324941696,1714455045862,-756.81853789,0.00028,2]
[324941697,1714455045871,-520.88755486,0.00028,2]
[324941698,1714455045879,-287.0,0.00028,2]
[324941699,1714455045888,-500.0,0.00028,2]
[324941700,1714455045897,-150.320406,0.00028,2]
[324941701,1714455045907,-1000.0,0.00028,2]
[324941702,1714455045916,-155.21372883,0.00028028,2]
[324941703,1714455045925,-166.666666,0.00028038,2]
[324941704,1714455045934,-605.12863353,0.0002814,2]
[324941705,1714455045944,-157.73975448,0.00028184,2]
[324941706,1714455045953,-150.0,0.00028228,2]
[324941707,1714455045962,-2258.0,0.0002829,2]
[324941708,1714455045971,-605.12863353,0.00028298,2]
[324941709,1714455045980,-2518.6711,0.00028372,30]
[324941710,1714455045989,-155.21372883,0.00028398,2]
[324941711,1714455045999,-620.00358676,0.00028453,2]
[324941712,1714455046008,-268.947791,0.00028493,2]
[324941713,1714455046017,-257.583705,0.00028493,2]
[324941714,1714455046026,-150.0,0.00028499,2]
[324941715,1714455046035,-1000.0,0.00028502,2]
[324941716,1714455046044,-155.21372883,0.00028607,2]
[324941717,1714455046054,-1008.24709487,0.00028652,2]
[324941718,1714455046064,-153.0,0.00028658,2]
[324941719,1714455046074,-153.0,0.00028658,2]
[324941720,1714455046083,-308.331308,0.00028658,2]
[324941721,1714455046093,-153.0,0.00028658,2]
[324941722,1714455046102,-153.0,0.00028658,2]
[324941723,1714455046111,-153.0,0.00028658,2]
[324941724,1714455046122,-154.5413246,0.00028658,2]
[324941725,1714455046131,-153.0,0.00028658,2]
[324941726,1714455046140,-153.0,0.00028658,2]
[324941727,1714455046149,-153.0,0.00028658,2]
[324941728,1714455046158,-153.0,0.00028658,2]
[324941729,1714455046167,-153.0,0.00028658,2]
[324941730,1714455046176,-153.0,0.00028658,2]
[324941731,1714455046185,-153.0,0.00028658,2]
[324941732,1714455046194,-153.0,0.00028658,2]
[324941733,1714455046203,-153.0,0.00028658,2]
[324941734,1714455046212,-153.0,0.00028658,2]
[324941735,1714455046222,-153.0,0.00028658,2]
[324941736,1714455046231,-153.0,0.00028658,2]
[324941737,1714455046241,-153.0,0.00028658,2]
[324941738,1714455046250,-153.0,0.00028658,2]
[324941739,1714455046260,-153.0,0.00028658,2]
[324941740,1714455046269,-153.0,0.00028658,2]
[324941741,1714455046278,-153.0,0.00028658,2]
[324941742,1714455046288,-153.0,0.00028658,2]
[324941743,1714455046297,-153.0,0.00028658,2]
[324941744,1714455046307,-153.0,0.00028658,2]
[324941745,1714455046316,-153.0,0.00028658,2]
[324941746,1714455046325,-153.0,0.00028658,2]
[324941747,1714455046335,-153.0,0.00028658,2]
[324941748,1714455046344,-153.0,0.00028658,2]
[324941749,1714455046353,-153.0,0.00028658,2]
[324941750,1714455046362,-153.0,0.00028658,2]
[324941751,1714455046371,-166.666666,0.00028679,2]
[324941752,1714455046381,-535.0,0.0002874,35]
[324941753,1714455046390,-150.5,0.0002874,35]
[324941754,1714455046399,-535.0,0.0002875,35]
[324941755,1714455046408,-150.5,0.0002875,35]
[324941756,1714455046417,-179.35,0.0002875,35]
[324941757,1714455046427,-667010.45999907,0.0002876,2]
[324941758,1714455046436,-535.0,0.0002876,35]
[324941759,1714455046445,-150.5,0.0002876,35]
[324941760,1714455046454,-98221.61630775,0.0002877,2]
[324941761,1714455046463,-1470.7632,0.000288,2]
[324941762,1714455046473,-157.742788,0.00028828,2]
[324941763,1714455046482,-605.12863353,0.00028868,2]
[324941764,1714455046491,-152.79752244,0.00028894,2]
[324941765,1714455046500,-3853.82848655,0.000289,2]
[324941766,1714455046510,-152.79752244,0.00028903,2]
[324941767,1714455046519,-150.0,0.00028939,3]
[324941768,1714455046528,-155.21372883,0.00028979,2]
[324941769,1714455046538,-413.0,0.00028997,2]
[324941770,1714455046548,-152.79752244,0.00029038,2]
[324941771,1714455046558,-155.21372883,0.00029236,2]
[324941772,1714455046569,-166.666666,0.00029321,2]
[324941773,1714455046578,-605.12863353,0.00029353,2]
[324941774,1714455046587,-152.79752244,0.00029423,2]
[324941775,1714455046597,-153.0,0.00029479,2]
[324941776,1714455046606,-153.0,0.00029479,2]
[324941777,1714455046616,-153.0,0.00029479,2]
[324941778,1714455046626,-306.0,0.00029479,2]
[324941779,1714455046635,-306.0,0.00029479,2]
[324941780,1714455046644,-306.0,0.00029479,2]
[324941781,1714455046654,-306.0,0.00029479,2]
[324941782,1714455046664,-153.0,0.00029479,2]
[324941783,1714455046673,-153.0,0.00029479,2]
[324941784,1714455046682,-306.0,0.00029479,2]
[324941785,1714455046692,-153.0,0.00029479,2]
[324941786,1714455046701,-153.0,0.00029479,2]
[324941787,1714455046710,-377.9562981,0.00029479,2]
[324941788,1714455046720,-150.0,0.00029499,2]
[324941789,1714455046730,-605.12863353,0.00029671,2]
[324941790,1714455046740,-165.13262415,0.00029695,2]
[324941791,1714455046749,-605.12863353,0.00029758,2]
[324941792,1714455046758,-165.13262415,0.00029818,2]
[324941793,1714455046859,-165.13262415,0.00029859,2]
[324941794,1714455046868,-150.5,0.0002987,35]
[324941795,1714455046878,-620.00017934,0.00029875,2]
[324941796,1714455046887,-150.5,0.0002988,35]
[324941797,1714455046896,-150.5,0.0002989,35]
[324941798,1714455046905,-168.19,0.0002989,35]
[324941799,1714455046914,-51819.76078572,0.000299,2]
[324941800,1714455047264,-0.00152147,0.00021918,2]
[324941801,1714455047552,-268.54314189,0.00019999,2]
[324941802,1714455047566,-981.71883548,0.00019999,2]
[324941803,1714455047576,-192.28847853,0.00021918,2]
[324941804,1714455047586,-1633.87335905,0.00022576,2]
[324941805,1714455047602,-1633.87335905,0.00025929,2]
[324941806,1714455047611,-153.0,0.00028658,2]
[324941807,1714455047623,-235.8386368,0.00028658,2]
[324941808,1714455047635,-125445.45443737,0.000299,2]
[324941809,1714455047647,-254.44535699,0.000299,2]
[324941810,1714455047656,-254.44535696,0.000299,2]
[324941811,1714455047666,-254.44535696,0.000299,2]
[324941812,1714455047675,-254.44535696,0.000299,2]
[324941813,1714455047684,-489.74977647,0.000299,2]
[324941814,1714455047693,-489.74977638,0.000299,2]
[324941815,1714455047703,-489.74977638,0.000299,2]
[324941816,1714455047712,-489.74977638,0.000299,2]
[324941817,1714455047721,-489.74977638,0.000299,2]
[324941818,1714455047734,-489.74977638,0.000299,2]
[324941819,1714455047746,-489.74977638,0.000299,2]
[324941820,1714455047755,-489.74977638,0.000299,2]
[324941821,1714455047764,-489.74977638,0.000299,2]
[324941822,1714455047772,-489.74977638,0.000299,2]
[324941823,1714455047782,-166.666666,0.00029962,2]
[324941824,1714455047791,-153.0,0.00029973,2]
[324941825,1714455047801,-153.0,0.0003,2]
[324941826,1714455047810,-154.78330338,0.0003,4]
[324941827,1714455047820,-154.78330338,0.0003,4]
[324941828,1714455047829,-154.78330338,0.0003,4]
[324941829,1714455047839,-1330.0170423,0.0003,4]
[324941830,1714455047848,-500.11273636,0.0003,2]
[324941831,1714455047857,-201.0,0.0003,2]
[324941832,1714455047866,-165.13262415,0.00030111,7]
[324941833,1714455047875,-150.0,0.00030192,2]
[324941834,1714455047885,-150.0,0.00030192,2]
[324941835,1714455047894,-153.6757428,0.00030274,2]
[324941836,1714455047903,-153.0,0.00030274,2]
[324941837,1714455047912,-153.0,0.00030274,2]
[324941838,1714455047921,-153.0,0.00030301,2]
[324941839,1714455047930,-203.7672836,0.00030301,2]
[324941840,1714455047939,-203.7672836,0.00030301,2]
[324941841,1714455047948,-153.0,0.00030301,2]
[324941842,1714455047956,-203.7672836,0.00030301,2]
[324941843,1714455047965,-203.7672836,0.00030301,2]
[324941844,1714455047974,-153.0,0.00030301,2]
[324941845,1714455047983,-203.7672836,0.00030301,2]
[324941846,1714455047992,-203.7672836,0.00030301,2]
[324941847,1714455048001,-153.0,0.00030301,2]
[324941848,1714455048011,-203.7672836,0.00030301,2]
[324941849,1714455048020,-203.7672836,0.00030301,2]
[324941850,1714455048029,-153.0,0.00030301,2]
[324941851,1714455048038,-203.7672836,0.00030301,2]
[324941852,1714455048047,-203.7672836,0.00030301,2]
[324941853,1714455048056,-153.0,0.00030301,2]
[324941854,1714455048066,-203.7672836,0.00030301,2]
[324941855,1714455048075,-203.7672836,0.00030301,2]
[324941856,1714455048084,-203.7672836,0.00030301,2]
[324941857,1714455048093,-153.0,0.00030301,2]
[324941858,1714455048103,-203.7672836,0.00030301,2]
[324941859,1714455048113,-203.7672836,0.00030301,2]
[324941860,1714455048123,-153.0,0.00030301,2]
[324941861,1714455048132,-391.789137,0.00030301,2]
[324941862,1714455048141,-203.7672836,0.00030301,2]
[324941863,1714455048150,-153.0,0.00030301,2]
[324941864,1714455048159,-203.7672836,0.00030301,2]
[324941865,1714455048168,-153.0,0.00030301,2]
[324941866,1714455048178,-203.7672836,0.00030301,2]
[324941867,1714455048187,-153.0,0.00030301,2]
[324941868,1714455048196,-153.0,0.00030301,2]
[324941869,1714455048205,-153.0,0.00030301,2]
[324941870,1714455048214,-153.0,0.00030301,2]
[324941871,1714455048223,-153.0,0.00030301,2]
[324941872,1714455048232,-150.0,0.00030428,3]
[324941873,1714455048241,-150.0,0.00030499,2]
[324941874,1714455048250,-166.666666,0.00030603,2]
[324941875,1714455048259,-417.0,0.00030643,2]
[324941876,1714455048268,-152.79752244,0.00030646,7]
[324941877,1714455048277,-151.0,0.00030759,2]
[324941878,1714455048287,-605.12863353,0.0003086,7]
[324941879,1714455048296,-165.13262415,0.00030861,7]
[324941880,1714455048306,-165.13262415,0.00030889,7]
[324941881,1714455048315,-157.73975448,0.00030919,7]
[324941882,1714455048324,-165.13262415,0.00030986,7]
[324941883,1714455048334,-286.96475417,0.00031,2]
[324941884,1714455048343,-165.13262415,0.00031079,7]
[324941885,1714455048352,-605.12863353,0.0003108,7]
[324941886,1714455048361,-3162.0,0.00031119,2]
[324941887,1714455048370,-150.77383924,0.0003112,2]
[324941888,1714455048379,-15015.86306766,0.00031199,2]
[324941889,1714455048388,-150.0,0.00031228,2]
[324941890,1714455048397,-152.79752244,0.00031336,7]
[324941891,1714455048406,-620.00000897,0.00031369,2]
[324941892,1714455048415,-150.0,0.00031499,2]
[324941893,1714455048424,-301.54767848,0.00031643,4]
[324941894,1714455048434,-605.12863353,0.000317,7]
[324941895,1714455048443,-155.21372883,0.00031736,7]
[324941896,1714455048452,-500.0,0.0003178,2]
[324941897,1714455048462,-500.0,0.0003178,2]
[324941898,1714455048471,-202.0073557,0.0003178,2]
[324941899,1714455048480,-500.0,0.0003178,2]
[324941900,1714455048494,-500.0,0.0003178,2]
[324941901,1714455048503,-500.0,0.0003178,2]
[324941902,1714455048513,-500.0,0.0003178,2]
[324941903,1714455048522,-500.0,0.0003178,2]
[324941904,1714455048624,-1038.28298986,0.0003178,2]
[324941905,1714455048634,-500.0,0.0003178,2]
[324941906,1714455048644,-500.0,0.0003178,2]
[324941907,1714455048654,-500.0,0.0003178,2]
[324941908,1714455048664,-500.64495852,0.0003178,2]
[324941909,1714455048673,-500.38079488,0.0003178,2]
[324941910,1714455048682,-500.3908935,0.0003178,2]
[324941911,1714455048691,-500.0,0.0003178,2]
[324941912,1714455048700,-500.0,0.0003178,2]
[324941913,1714455048709,-500.0,0.0003178,2]
[324941914,1714455048718,-500.42016038,0.0003178,2]
[324941915,1714455048727,-500.0,0.0003178,2]
[324941916,1714455048736,-500.0,0.0003178,2]
[324941917,1714455048745,-637.4113409,0.0003178,2]
[324941918,1714455048755,-500.41116057,0.0003178,2]
[324941919,1714455048764,-1051.85,0.0003178,2]
[324941920,1714455048773,-263.83824554,0.0003178,2]
[324941921,1714455048782,-536.27,0.0003178,2]
[324941922,1714455048791,-500.0,0.0003178,2]
[324941923,1714455048800,-500.70979911,0.0003178,2]
[324941924,1714455048809,-500.0,0.0003178,2]
[324941925,1714455048819,-500.0,0.0003178,2]
[324941926,1714455048827,-500.0,0.0003178,2]
[324941927,1714455048837,-520.41144248,0.0003178,2]
[324941928,1714455048846,-500.49125673,0.0003178,2]
[324941929,1714455048855,-542.40275928,0.0003178,2]
[324941930,1714455048864,-500.42268836,0.0003178,2]
[324941931,1714455048874,-500.19369201,0.0003178,2]
[324941932,1714455048883,-747.79,0.0003178,2]
[324941933,1714455048892,-500.0,0.0003178,2]
[324941934,1714455048901,-500.0,0.0003178,2]
[324941935,1714455048910,-300.0,0.0003178,2]
[324941936,1714455048919,-500.0,0.0003178,2]
[324941937,1714455048928,-500.0,0.0003178,2]
[324941938,1714455048938,-500.0,0.0003178,2]
[324941939,1714455048958,-501.24813892,0.0003178,2]
[324941940,1714455048968,-500.0,0.0003178,2]
[324941941,1714455048978,-500.0,0.0003178,2]
[324941942,1714455048988,-375.42099038,0.0003178,2]
[324941943,1714455048998,-500.0,0.0003178,2]
[324941944,1714455049007,-500.0,0.0003178,2]
[324941945,1714455049018,-509.78,0.0003178,2]
[324941946,1714455049027,-500.0,0.0003178,2]
[324941947,1714455049037,-500.0,0.0003178,2]
[324941948,1714455049049,-500.0,0.0003178,2]
[324941949,1714455049059,-500.74114286,0.0003178,2]
[324941950,1714455049069,-500.0,0.0003178,2]
[324941951,1714455049079,-500.0,0.0003178,2]
[324941952,1714455049088,-408.72450703,0.0003178,2]
[324941953,1714455049098,-500.0,0.0003178,2]
[324941954,1714455049108,-500.0,0.0003178,2]
[324941955,1714455049117,-500.0,0.0003178,2]
[324941956,1714455049127,-501.34976707,0.0003178,2]
[324941957,1714455049137,-500.0,0.0003178,2]
[324941958,1714455049147,-500.0,0.0003178,2]
[324941959,1714455049156,-500.0,0.0003178,2]
[324941960,1714455049166,-500.0,0.0003178,2]
[324941961,1714455049176,-500.0,0.0003178,2]
[324941962,1714455049185,-501.70706879,0.0003178,2]
[324941963,1714455049195,-500.6816231,0.0003178,2]
[324941964,1714455049206,-531.57090197,0.0003178,2]
[324941965,1714455049215,-513.73,0.0003178,2]
[324941966,1714455049226,-500.0,0.0003178,2]
[324941967,1714455049236,-929.14,0.0003178,2]
[324941968,1714455049247,-622.13699817,0.0003178,2]
[324941969,1714455049258,-500.0,0.0003178,2]
[324941970,1714455049268,-500.0,0.0003178,2]
[324941971,1714455049278,-500.0,0.0003178,2]
[324941972,1714455049288,-500.0,0.0003178,2]
[324941973,1714455049299,-500.0,0.0003178,2]
[324941974,1714455049309,-500.0,0.0003178,2]
[324941975,1714455049319,-500.0,0.0003178,2]
[324941976,1714455049328,-500.0,0.0003178,2]
[324941977,1714455049337,-500.94224634,0.0003178,2]
[324941978,1714455049347,-500.0,0.0003178,2]
[324941979,1714455049356,-500.0,0.0003178,2]
[324941980,1714455049366,-500.0,0.0003178,2]
[324941981,1714455049375,-499.21741299,0.0003178,2]
[324941982,1714455049385,-500.0,0.0003178,2]
[324941983,1714455049395,-501.69971425,0.0003178,2]
[324941984,1714455049404,-500.0,0.0003178,2]
[324941985,1714455049414,-500.0,0.0003178,2]
[324941986,1714455049423,-500.0,0.0003178,2]
[324941987,1714455049433,-500.0,0.0003178,2]
[324941988,1714455049443,-500.0,0.0003178,2]
[324941989,1714455049454,-500.247004,0.0003178,2]
[324941990,1714455049478,-500.0,0.0003178,2]
[324941991,1714455049498,-500.0,0.0003178,2]
[324941992,1714455049512,-509.0,0.0003178,2]
[324941993,1714455049529,-500.0,0.0003178,2]
[324941994,1714455049545,-500.0,0.0003178,2]
[324941995,1714455049568,-500.0,0.0003178,2]
[324941996,1714455049586,-912.17,0.0003178,2]
[324941997,1714455049603,-500.0,0.0003178,14]
[324941998,1714455049618,-500.0,0.0003178,2]
[324941999,1714455049635,-500.0,0.0003178,2]
[324942000,1714455049649,-798.07,0.0003178,2]
[324942001,1714455049661,-500.0,0.0003178,2]
[324942002,1714455049674,-500.0,0.0003178,2]
[324942003,1714455049689,-500.0,0.0003178,2]
[324942004,1714455049704,-500.0,0.0003178,2]
[324942005,1714455049721,-500.0,0.0003178,2]
[324942006,1714455049733,-500.0,0.0003178,2]
[324942007,1714455049744,-384.07424823,0.0003178,2]
[324942008,1714455049758,-500.0,0.0003178,2]
[324942009,1714455049771,-231.05209328,0.0003178,2]
[324942010,1714455049785,-500.0,0.0003178,2]
[324942011,1714455049798,-500.0,0.0003178,2]
[324942012,1714455049816,-500.0,0.0003178,2]
[324942013,1714455049831,-500.0,0.0003178,2]
[324942014,1714455049842,-500.0,0.0003178,2]
[324942015,1714455049854,-500.0,0.0003178,2]
[324942016,1714455049866,-500.0,0.0003178,2]
[324942017,1714455049880,-500.0,0.0003178,2]
[324942018,1714455049895,-500.0,0.0003178,2]
[324942019,1714455049909,-673.57,0.0003178,2]
[324942020,1714455049926,-500.0,0.0003178,2]
[324942021,1714455049939,-195.82594138,0.0003178,2]
[324942022,1714455049952,-500.0,0.0003178,2]
[324942023,1714455049965,-500.0,0.0003178,2]
[324942024,1714455049977,-583.65,0.0003178,2]
[324942025,1714455049990,-500.0,0.0003178,2]
[324942026,1714455050003,-625.9,0.0003178,2]
[324942027,1714455050016,-500.0,0.0003178,2]
[324942028,1714455050028,-500.0,0.0003178,2]
[324942029,1714455050041,-500.0,0.0003178,2]
[324942030,1714455050059,-500.0,0.0003178,2]
[324942031,1714455050073,-500.0,0.0003178,2]
[324942032,1714455050085,-500.0,0.0003178,2]
[324942033,1714455050097,-578.26,0.0003178,2]
[324942034,1714455050109,-154.85969819,0.0003178,2]
[324942035,1714455050121,-198.91503447,0.0003178,2]
[324942036,1714455050134,-760.15,0.0003178,2]
[324942037,1714455050147,-500.0,0.0003178,2]
[324942038,1714455050159,-500.0,0.0003178,2]
[324942039,1714455050172,-500.0,0.0003178,2]
[324942040,1714455050185,-500.0,0.0003178,2]
[324942041,1714455050198,-500.0,0.0003178,2]
[324942042,1714455050211,-869.34,0.0003178,2]
[324942043,1714455050223,-500.0,0.0003178,2]
[324942044,1714455050236,-500.0,0.0003178,2]
[324942045,1714455050248,-515.0,0.0003178,2]
[324942046,1714455050260,-500.0,0.0003178,2]
[324942047,1714455050272,-500.0,0.0003178,2]
[324942048,1714455050285,-500.0,0.0003178,2]
[324942049,1714455050297,-500.0,0.0003178,2]
[324942050,1714455050316,-500.0,0.0003178,2]
[324942051,1714455050328,-702.12,0.0003178,2]
[324942052,1714455050340,-500.0,0.0003178,2]
[324942053,1714455050352,-500.0,0.0003178,2]
[324942054,1714455050365,-500.0,0.0003178,2]
[324942055,1714455050374,-751.51,0.0003178,2]
[324942056,1714455050383,-500.0,0.0003178,2]
[324942057,1714455050392,-531.93,0.0003178,2]
[324942058,1714455050401,-500.0,0.0003178,2]
[324942059,1714455050410,-510.56,0.0003178,2]
[324942060,1714455050419,-500.0,0.0003178,2]